fUST/lending_fUST_20250927
["ID","MTS","AMOUNT","RATE_DAILY","PERIOD"]
[388027494,1758970261340,-324.10751881,0.00035616,9]
[388027496,1758970261350,-151.0,0.00035616,7]
[388027498,1758970261358,-570.803334,0.00035616,7]
[388027500,1758970261368,-151.0,0.00035616,7]
[388027502,1758970261378,-570.803334,0.00035616,7]
[388027504,1758970261387,-151.0,0.00035616,7]
[388027506,1758970261395,-570.803334,0.00035616,7]
[388027508,1758970261404,-151.0,0.00035616,7]
[388027510,1758970261413,-480.0,0.00035616,9]
[388027512,1758970261422,-570.803339,0.00035616,7]
[388027513,1758970261431,-151.0,0.00035616,7]
[388027515,1758970261441,-2373.47,0.00035616,9]
[388027517,1758970261450,-151.0,0.00035616,7]
[388027519,1758970261459,-151.0,0.00035616,7]
[388027521,1758970261468,-243.64493,0.00035616,7]
[388027523,1758970261477,-1185.65,0.00035616,9]
[388027525,1758970261485,-480.0,0.00035616,9]
[388027527,1758970261495,-721.12,0.00035616,9]
[388027529,1758970261504,-480.0,0.00035616,9]
[388027531,1758970261513,-480.0,0.00035616,9]
[388027533,1758970261522,-2997.32,0.00035616,9]
[388027535,1758970261531,-480.0,0.00035616,9]
[388027537,1758970261542,-151.0,0.00035616,7]
[388027538,1758970261551,-480.0,0.00035616,9]
[388027540,1758970261561,-480.0,0.00035616,9]
[388027542,1758970261570,-151.0,0.00035616,7]
[388027544,1758970261579,-151.0,0.00035616,7]
[388027546,1758970261588,-480.0,0.00035616,9]
[388027548,1758970261597,-4639.24,0.00035616,9]
[388027550,1758970261606,-1189.82,0.00035616,9]
[388027552,1758970261616,-4719.37,0.00035616,9]
[388027554,1758970261625,-480.0,0.00035616,9]
[388027556,1758970261634,-151.0,0.00035616,7]
[388027558,1758970261643,-151.0,0.00035616,7]
[388027560,1758970261652,-151.0,0.00035616,7]
[388027561,1758970261661,-480.0,0.00035616,9]
[388027563,1758970261670,-633.54,0.00035616,9]
[388027565,1758970261680,-151.0,0.00035616,7]
[388027567,1758970261689,-151.0,0.00035616,7]
[388027569,1758970261698,-154.424771,0.00035616,7]
[388027571,1758970261707,-480.0,0.00035616,9]
[388027573,1758970261716,-1599.35,0.00035616,9]
[388027575,1758970261725,-480.0,0.00035616,9]
[388027577,1758970261734,-826.12,0.00035616,9]
[388027579,1758970261743,-480.0,0.00035616,9]
[388027581,1758970261753,-709.86,0.00035616,9]
[388027583,1758970261762,-480.0,0.00035616,9]
[388027585,1758970261772,-480.0,0.00035616,9]
[388027587,1758970261781,-524.37,0.00035616,9]
[388027589,1758970261792,-847.37,0.00035616,9]
[388027591,1758970261802,-480.0,0.00035616,9]
[388027593,1758970261811,-511.53,0.00035616,9]
[388027595,1758970261821,-903.84,0.00035616,9]
[388027597,1758970261830,-480.0,0.00035616,9]
[388027599,1758970261839,-2591.69,0.00035616,9]
[388027601,1758970261847,-2557.04,0.00035616,9]
[388027603,1758970261856,-480.0,0.00035616,9]
[388027604,1758970261865,-2239.64,0.00035616,9]
[388027606,1758970261874,-480.0,0.00035616,9]
[388027608,1758970261884,-480.0,0.00035616,7]
[388027610,1758970261893,-480.0,0.00035616,9]
[388027612,1758970261903,-607.68,0.00035616,9]
[388027614,1758970261912,-192.76563745,0.00035616,9]
[388027616,1758970261921,-480.0,0.00035616,9]
[388027618,1758970261931,-646.86,0.00035616,9]
[388027620,1758970261940,-480.0,0.00035616,9]
[388027622,1758970261950,-151.0,0.00035616,7]
[388027624,1758970261959,-151.0,0.00035616,7]
[388027626,1758970261968,-151.0,0.00035616,7]
[388027628,1758970261977,-178.161683,0.00035616,7]
[388027630,1758970261986,-360.27187277,0.00035616,9]
[388027632,1758970261996,-1006.12,0.00035616,9]
[388027634,1758970262005,-178.161683,0.00035616,7]
[388027636,1758970262015,-178.161683,0.00035616,7]
[388027638,1758970262024,-3882.46,0.00035616,9]
[388027640,1758970262035,-621.31,0.00035616,9]
[388027642,1758970262044,-480.0,0.00035616,9]
[388027644,1758970262053,-152.996396,0.00035616,7]
[388027646,1758970262064,-178.161683,0.00035616,7]
[388027648,1758970262073,-3043.55,0.00035616,9]
[388027649,1758970262083,-178.161683,0.00035616,7]
[388027651,1758970262093,-178.161683,0.00035616,7]
[388027653,1758970262102,-4407.87,0.00035616,9]
[388027655,1758970262112,-151.0,0.00035616,7]
[388027657,1758970262125,-480.0,0.00035616,9]
[388027659,1758970262134,-1924.99,0.00035616,9]
[388027661,1758970262143,-151.0,0.00035616,7]
[388027663,1758970262152,-151.0,0.00035616,7]
[388027665,1758970262161,-797.12,0.00035616,9]
[388027667,1758970262170,-234.209729,0.00035616,7]
[388027669,1758970262179,-178.161683,0.00035616,7]
[388027671,1758970262189,-234.209729,0.00035616,7]
[388027673,1758970262199,-178.161683,0.00035616,7]
[388027675,1758970262209,-151.0,0.00035616,7]
[388027677,1758970262219,-1620.04,0.00035616,9]
[388027679,1758970262229,-234.209729,0.00035616,7]
[388027681,1758970262238,-178.161683,0.00035616,7]
[388027683,1758970262247,-151.0,0.00035616,7]
[388027685,1758970262257,-151.0,0.00035616,7]
[388027686,1758970262267,-234.209729,0.00035616,7]
[388027688,1758970262277,-178.161683,0.00035616,7]
[388027690,1758970262288,-178.161683,0.00035616,7]
[388027692,1758970262298,-234.209729,0.00035616,7]
[388027694,1758970262307,-151.0,0.00035616,7]
[388027696,1758970262316,-209.31866,0.00035616,7]
[388027698,1758970262326,-234.209729,0.00035616,7]
[388027700,1758970262335,-178.161678,0.00035616,7]
[388027702,1758970262344,-151.0,0.00035616,7]
[388027703,1758970262353,-209.31866,0.00035616,7]
[388027705,1758970262362,-151.0,0.00035616,7]
[388027707,1758970262371,-209.31866,0.00035616,7]
[388027709,1758970262380,-234.209729,0.00035616,7]
[388027711,1758970262390,-2284.76,0.00035616,9]
[388027713,1758970262399,-234.209729,0.00035616,7]
[388027715,1758970262408,-218.787906,0.00035616,7]
[388027717,1758970262417,-1089.84,0.00035616,9]
[388027719,1758970262426,-234.209729,0.00035616,7]
[388027721,1758970262435,-209.31866,0.00035616,7]
[388027723,1758970262443,-209.31866,0.00035616,7]
[388027725,1758970262453,-209.31866,0.00035616,7]
[388027727,1758970262462,-234.209729,0.00035616,7]
[388027729,1758970262471,-234.209729,0.00035616,7]
[388027731,1758970262481,-480.0,0.00035616,9]
[388027733,1758970262489,-234.20972,0.00035616,7]
[388027735,1758970262498,-209.31866,0.00035616,7]
[388027737,1758970262507,-952.83,0.00035616,9]
[388027739,1758970262516,-209.31866,0.00035616,7]
[388027740,1758970262525,-209.31866,0.00035616,7]
[388027742,1758970262536,-480.0,0.00035616,9]
[388027744,1758970262544,-209.31866,0.00035616,7]
[388027746,1758970262553,-209.31866,0.00035616,7]
[388027748,1758970262563,-209.318651,0.00035616,7]
[388027750,1758970262572,-771.61,0.00035616,9]
[388027752,1758970262581,-480.0,0.00035616,9]
[388027754,1758970262590,-480.0,0.00035616,9]
[388027756,1758970262600,-2271.33,0.00035616,9]
[388027758,1758970262609,-480.0,0.00035616,9]
[388027760,1758970262617,-480.0,0.00035616,9]
[388027762,1758970262630,-480.0,0.00035616,9]
[388027764,1758970262639,-151.0,0.00035616,7]
[388027766,1758970262648,-151.0,0.00035616,7]
[388027768,1758970262657,-151.0,0.00035616,7]
[388027770,1758970262666,-480.0,0.00035616,9]
[388027772,1758970262674,-153.995162,0.00035616,7]
[388027774,1758970262683,-5713.66,0.00035616,9]
[388027776,1758970262692,-480.0,0.00035616,9]
[388027778,1758970262702,-480.0,0.00035616,9]
[388027780,1758970262710,-4098.0,0.00035616,9]
[388027782,1758970262719,-178.814501,0.00035616,7]
[388027784,1758970262728,-480.0,0.00035616,9]
[388027786,1758970262737,-178.814501,0.00035616,7]
[388027788,1758970262747,-151.0,0.00035616,7]
[388027790,1758970262755,-178.814501,0.00035616,7]
[388027791,1758970262764,-151.0,0.00035616,7]
[388027793,1758970262774,-480.0,0.00035616,9]
[388027795,1758970262784,-151.0,0.00035616,7]
[388027797,1758970262794,-178.814501,0.00035616,7]
[388027799,1758970262803,-2916.503638,0.00035616,7]
[388027801,1758970262813,-178.814501,0.00035616,7]
[388027803,1758970262822,-2916.503638,0.00035616,7]
[388027806,1758970262831,-151.0,0.00035616,7]
[388027807,1758970262840,-178.814501,0.00035616,7]
[388027809,1758970262849,-480.0,0.00035616,9]
[388027811,1758970262859,-2916.503638,0.00035616,7]
[388027812,1758970262868,-151.0,0.00035616,7]
[388027813,1758970262876,-151.0,0.00035616,7]
[388027814,1758970262885,-178.814501,0.00035616,7]
[388027815,1758970262893,-212.018758,0.00035616,7]
[388027816,1758970262902,-2916.503638,0.00035616,7]
[388027817,1758970262911,-178.814501,0.00035616,7]
[388027818,1758970262920,-212.018758,0.00035616,7]
[388027819,1758970262929,-2916.503638,0.00035616,7]
[388027820,1758970262939,-2448.15,0.00035616,9]
[388027821,1758970262948,-178.814501,0.00035616,7]
[388027822,1758970262957,-212.018758,0.00035616,7]
[388027824,1758970262966,-2916.503638,0.00035616,7]
[388027826,1758970262976,-482.42007813,0.00035616,9]
[388027828,1758970262985,-212.018758,0.00035616,7]
[388027830,1758970262996,-178.814501,0.00035616,7]
[388027832,1758970263015,-2916.503638,0.00035616,7]
[388027834,1758970263024,-212.018758,0.00035616,7]
[388027836,1758970263034,-178.814501,0.00035616,7]
[388027838,1758970263051,-2916.503638,0.00035616,7]
[388027840,1758970263061,-212.018758,0.00035616,7]
[388027842,1758970263072,-2916.503638,0.00035616,7]
[388027844,1758970263083,-178.814498,0.00035616,7]
[388027846,1758970263094,-2916.503638,0.00035616,7]
[388027848,1758970263103,-212.018758,0.00035616,7]
[388027861,1758970263221,-480.0,0.00035616,9]
[388027863,1758970263239,-2916.503638,0.00035616,7]
[388027865,1758970263250,-212.018758,0.00035616,7]
[388027867,1758970263259,-2916.503647,0.00035616,7]
[388027869,1758970263269,-212.018758,0.00035616,7]
[388027871,1758970263278,-480.0,0.00035616,9]
[388027873,1758970263288,-490.67,0.00035616,9]
[388027875,1758970263297,-1625.07,0.00035616,9]
[388027877,1758970263307,-212.018758,0.00035616,7]
[388027879,1758970263316,-480.0,0.00035616,9]
[388027881,1758970263326,-212.018758,0.00035616,7]
[388027883,1758970263335,-212.018758,0.00035616,7]
[388027885,1758970263344,-480.0,0.00035616,9]
[388027887,1758970263352,-1995.48,0.00035616,9]
[388027889,1758970263362,-494.58,0.00035616,9]
[388027891,1758970263371,-471.324711,0.00035616,7]
[388027893,1758970263380,-471.324711,0.00035616,7]
[388027895,1758970263389,-471.324711,0.00035616,7]
[388027897,1758970263398,-480.0,0.00035616,9]
[388027899,1758970263408,-196.817948,0.00035616,7]
[388027901,1758970263417,-196.817948,0.00035616,7]
[388027903,1758970263425,-471.324711,0.00035616,7]
[388027905,1758970263434,-196.817948,0.00035616,7]
[388027907,1758970263446,-471.324711,0.00035616,7]
[388027909,1758970263455,-490.42,0.00035616,9]
[388027910,1758970263464,-471.324711,0.00035616,7]
[388027912,1758970263474,-1671.18,0.00035616,9]
[388027914,1758970263482,-196.817948,0.00035616,7]
[388027916,1758970263491,-471.324711,0.00035616,7]
[388027918,1758970263500,-196.817948,0.00035616,7]
[388027920,1758970263509,-471.324711,0.00035616,7]
[388027922,1758970263518,-196.817948,0.00035616,7]
[388027924,1758970263527,-480.0,0.00035616,9]
[388027926,1758970263537,-471.324711,0.00035616,7]
[388027928,1758970263546,-196.817948,0.00035616,7]
[388027930,1758970263555,-471.324711,0.00035616,7]
[388027932,1758970263564,-877.17,0.00035616,9]
[388027934,1758970263573,-196.817948,0.00035616,7]
[388027936,1758970263582,-471.324711,0.00035616,7]
[388027938,1758970263591,-161.079267,0.00035616,7]
[388027940,1758970263600,-196.817948,0.00035616,7]
[388027942,1758970263609,-471.324718,0.00035616,7]
[388027944,1758970263618,-483.19232506,0.00035616,9]
[388027946,1758970263628,-480.0,0.00035616,9]
[388027948,1758970263637,-196.817948,0.00035616,7]
[388027950,1758970263646,-196.817948,0.00035616,7]
[388027952,1758970263655,-196.817958,0.00035616,7]
[388027954,1758970263665,-480.0,0.00035616,9]
[388027956,1758970263673,-480.0,0.00035616,9]
[388027958,1758970263683,-1278.43,0.00035616,9]
[388027960,1758970263692,-480.0,0.00035616,9]
[388027962,1758970263701,-480.0,0.00035616,9]
[388027964,1758970263710,-480.0,0.00035616,9]
[388027966,1758970263718,-8016.83,0.00035616,9]
[388027968,1758970263728,-1082.99,0.00035616,9]
[388027970,1758970263737,-480.0,0.00035616,9]
[388027972,1758970263746,-151.0,0.00035616,7]
[388027974,1758970263756,-589.38,0.00035616,9]
[388027976,1758970263765,-480.0,0.00035616,9]
[388027978,1758970263775,-151.0,0.00035616,7]
[388027980,1758970263785,-151.0,0.00035616,7]
[388027982,1758970263794,-480.0,0.00035616,9]
[388027984,1758970263803,-151.0,0.00035616,7]
[388027987,1758970263812,-252.890021,0.00035616,7]
[388027988,1758970263822,-480.0,0.00035616,9]
[388027990,1758970263831,-488.73591297,0.00035616,9]
[388027992,1758970263841,-480.0,0.00035616,9]
[388027994,1758970263850,-480.0,0.00035616,9]
[388027996,1758970263859,-495.00974472,0.00035616,9]
[388027998,1758970263868,-480.0,0.00035616,9]
[388028001,1758970263878,-480.0,0.00035616,9]
[388028003,1758970263887,-790.845021,0.00035616,7]
[388028005,1758970263897,-790.845021,0.00035616,7]
[388028007,1758970263906,-790.845021,0.00035616,7]
[388028009,1758970263915,-480.0,0.00035616,9]
[388028010,1758970263924,-518.1,0.00035616,9]
[388028013,1758970263934,-790.845021,0.00035616,7]
[388028014,1758970263943,-480.0,0.00035616,9]
[388028016,1758970263952,-790.845021,0.00035616,7]
[388028018,1758970263962,-4253.79,0.00035616,9]
[388028020,1758970263971,-790.845021,0.00035616,7]
[388028022,1758970263980,-480.0,0.00035616,9]
[388028024,1758970263990,-480.0,0.00035616,9]
[388028026,1758970263998,-790.845021,0.00035616,7]
[388028028,1758970264008,-790.845021,0.00035616,7]
[388028030,1758970264017,-790.845021,0.00035616,7]
[388028032,1758970264026,-480.0,0.00035616,9]
[388028034,1758970264035,-8732.73,0.00035616,9]
[388028036,1758970264044,-474.37203114,0.00035616,9]
[388028038,1758970264053,-790.845021,0.00035616,7]
[388028040,1758970264062,-790.845021,0.00035616,7]
[388028042,1758970264071,-480.0,0.00035616,9]
[388028044,1758970264081,-151.0,0.00035616,7]
[388028046,1758970264090,-790.845021,0.00035616,7]
[388028048,1758970264099,-151.0,0.00035616,7]
[388028050,1758970264108,-151.0,0.00035616,7]
[388028052,1758970264117,-151.0,0.00035616,7]
[388028054,1758970264129,-151.0,0.00035616,7]
[388028056,1758970264138,-151.0,0.00035616,7]
[388028058,1758970264147,-151.0,0.00035616,7]
[388028060,1758970264156,-151.0,0.00035616,7]
[388028062,1758970264165,-151.0,0.00035616,7]
[388028064,1758970264174,-480.0,0.00035616,9]
[388028066,1758970264183,-151.0,0.00035616,7]
[388028068,1758970264192,-151.0,0.00035616,7]
[388028070,1758970264202,-236.687184,0.00035616,7]
[388028072,1758970264211,-480.0,0.00035616,9]
[388028074,1758970264221,-731.0,0.00035617,2]
[388028076,1758970264230,-518.42161298,0.00035655,2]
[388028078,1758970264239,-500.0,0.00035673,5]
[388028080,1758970264249,-500.0,0.00035673,5]
[388028082,1758970264258,-501.95756785,0.00035673,2]
[388028084,1758970264267,-500.0,0.00035673,5]
[388028086,1758970264275,-500.0,0.00035673,2]
[388028088,1758970264285,-500.0,0.00035673,5]
[388028090,1758970264294,-500.000001,0.00035673,5]
[388028092,1758970264304,-500.0,0.00035673,5]
[388028094,1758970264313,-500.0,0.00035673,5]
[388028096,1758970264322,-501.78246744,0.00035673,5]
[388028098,1758970264331,-500.0,0.00035673,5]
[388028100,1758970264339,-500.0,0.00035673,5]
[388028101,1758970264348,-503.44472727,0.00035673,5]
[388028104,1758970264359,-500.0,0.00035673,5]
[388028105,1758970264368,-500.0,0.00035673,5]
[388028107,1758970264377,-500.0,0.00035673,5]
[388028109,1758970264386,-500.0,0.00035673,5]
[388028111,1758970264395,-500.0,0.00035673,5]
[388028113,1758970264404,-500.0,0.00035673,5]
[388028115,1758970264413,-500.0,0.00035673,5]
[388028117,1758970264422,-500.0,0.00035673,5]
[388028119,1758970264431,-502.12833857,0.00035673,5]
[388028121,1758970264440,-500.0,0.00035673,5]
[388028123,1758970264449,-500.0,0.00035673,5]
[388028125,1758970264458,-500.0,0.00035673,5]
[388028127,1758970264467,-500.0,0.00035673,5]
[388028129,1758970264476,-500.0,0.00035673,5]
[388028131,1758970264485,-500.0,0.00035673,5]
[388028133,1758970264494,-500.0,0.00035673,5]
[388028135,1758970264503,-501.68761577,0.00035673,5]
[388028137,1758970264512,-500.0,0.00035673,5]
[388028139,1758970264521,-500.0,0.00035673,5]
[388028141,1758970264531,-500.0,0.00035673,5]
[388028143,1758970264541,-151.0,0.000357,13]
[388028145,1758970264551,-800.0,0.00035705,7]
[388028147,1758970264560,-1014.61630201,0.0003571,30]
[388028149,1758970264569,-800.0,0.00035729,7]
[388028151,1758970264579,-168.0,0.00035749,2]
[388028154,1758970264589,-327.64931952,0.00035777,7]
[388028155,1758970264598,-151.0,0.000358,19]
[388028158,1758970264608,-1018.0,0.00035835,2]
[388028160,1758970264617,-800.0,0.00035856,7]
[388028162,1758970264627,-731.0,0.00035857,120]
[388028164,1758970264636,-250.0,0.00035873,5]
[388028166,1758970264645,-480.0,0.0003589,9]
[388028167,1758970264654,-480.0,0.0003589,9]
[388028169,1758970264663,-605.76,0.0003589,9]
[388028171,1758970264673,-580.63218772,0.0003589,9]
[388028174,1758970264683,-480.0,0.0003589,9]
[388028175,1758970264693,-480.0,0.0003589,9]
[388028178,1758970264704,-480.0,0.0003589,9]
[388028179,1758970264713,-740.2,0.0003589,9]
[388028181,1758970264724,-480.0,0.0003589,9]
[388028184,1758970264734,-480.0,0.0003589,9]
[388028186,1758970264743,-598.56,0.0003589,9]
[388028188,1758970264753,-364.19747203,0.0003589,9]
[388028190,1758970264770,-83.14136309,0.0003589,9]
[388028192,1758970264779,-480.0,0.0003589,9]
[388028194,1758970264789,-15.47863697,0.0003589,9]
[388028197,1758970264801,-464.52136303,0.0003589,9]
[388028199,1758970264809,-480.0,0.0003589,9]
[388028201,1758970264819,-480.0,0.0003589,9]
[388028203,1758970264827,-480.0,0.0003589,9]
[388028205,1758970264836,-480.0,0.0003589,9]
[388028207,1758970264845,-480.0,0.0003589,9]
[388028220,1758970264963,-480.0,0.0003589,9]
[388028223,1758970264972,-480.0,0.0003589,9]
[388028224,1758970264982,-578.48,0.0003589,9]
[388028226,1758970264991,-480.0,0.0003589,9]
[388028229,1758970265001,-480.0,0.0003589,9]
[388028231,1758970265010,-480.0,0.0003589,9]
[388028232,1758970265019,-480.0,0.0003589,9]
[388028234,1758970265029,-480.0,0.0003589,9]
[388028237,1758970265038,-480.0,0.0003589,9]
[388028238,1758970265047,-1086.4,0.0003589,9]
[388028240,1758970265057,-480.0,0.0003589,9]
[388028242,1758970265067,-500.77560801,0.0003589,9]
[388028244,1758970265076,-480.0,0.0003589,9]
[388028246,1758970265085,-480.0,0.0003589,9]
[388028248,1758970265094,-480.0,0.0003589,9]
[388028250,1758970265104,-480.0,0.0003589,9]
[388028252,1758970265113,-480.0,0.0003589,9]
[388028254,1758970265126,-480.0,0.0003589,9]
[388028256,1758970265135,-480.0,0.0003589,9]
[388028258,1758970265144,-480.0,0.0003589,9]
[388028260,1758970265154,-480.0,0.0003589,9]
[388028262,1758970265163,-480.0,0.0003589,9]
[388028264,1758970265172,-480.0,0.0003589,9]
[388028266,1758970265181,-480.0,0.0003589,9]
[388028268,1758970265192,-487.72322651,0.0003589,9]
[388028270,1758970265202,-506.4812023,0.0003589,9]
[388028272,1758970265211,-480.0,0.0003589,9]
[388028274,1758970265220,-489.06860268,0.0003589,9]
[388028276,1758970265229,-480.0,0.0003589,9]
[388028278,1758970265238,-151.0,0.0003589,30]
[388028280,1758970265247,-151.0,0.0003589,30]
[388028282,1758970265256,-151.0,0.0003589,30]
[388028284,1758970265266,-151.0,0.0003589,30]
[388028285,1758970265275,-276.159098,0.0003589,30]
[388028288,1758970265285,-480.0,0.0003589,9]
[388028290,1758970265295,-480.0,0.0003589,9]
[388028292,1758970265305,-151.0,0.0003589,30]
[388028294,1758970265314,-151.0,0.0003589,30]
[388028296,1758970265324,-151.0,0.0003589,30]
[388028298,1758970265333,-151.0,0.0003589,30]
[388028300,1758970265342,-1747.67,0.0003589,9]
[388028302,1758970265351,-198.416935,0.0003589,30]
[388028304,1758970265361,-321.93812152,0.0003589,9]
[388028306,1758970265377,-158.06187848,0.0003589,9]
[388028308,1758970265386,-480.0,0.0003589,9]
[388028310,1758970265395,-480.0,0.0003589,9]
[388028312,1758970265405,-480.0,0.0003589,9]
[388028314,1758970265414,-393.29041367,0.0003589,9]
[388030171,1758970444339,167.243571,0.00014605,2]
[388030172,1758970481954,300.0,0.000238,2]
[388030173,1758970493851,300.0,0.000146,2]
[388030174,1758970497401,-150.0,0.000246,2]
[388030175,1758970505619,300.0,0.000146,2]
[388030176,1758970517953,300.0,0.000146,2]
[388030177,1758970528611,300.0,0.000146,2]
[388030178,1758970536300,300.0,0.000146,2]
[388030179,1758970543498,300.0,0.000146,2]
[388030180,1758970548641,300.0,0.000146,2]
[388030181,1758970554625,300.0,0.000146,2]
[388030182,1758970558777,182.5258603,0.000246,2]
[388030183,1758970559247,300.0,0.000146,2]
[388030184,1758970565866,300.0,0.000146,2]
[388030185,1758970570338,300.0,0.000146,2]
[388030186,1758970581182,2724.1563919,0.000246,2]
[388030187,1758970596787,300.0,0.000146,2]
[388030188,1758970603934,861.57314664,0.000246,2]
[388030189,1758970634825,516.18601503,0.000246,2]
[388030190,1758970643249,2115.56858613,0.000246,2]
[388030191,1758970643276,2884.43141387,0.000246,2]
[388030192,1758970666917,4739.89021948,0.000246,2]
[388030194,1758970682371,2375.68836665,0.000246,2]
[388030195,1758970682395,2624.31163335,0.000246,2]
[388030196,1758970690250,5000.0,0.000246,2]
[388030197,1758970705904,2375.69836665,0.000246,2]
[388030198,1758970705929,2624.30163335,0.000246,2]
[388030199,1758970721996,264.35054532,0.000246,2]
[388030200,1758970730239,5000.0,0.000246,2]
[388030201,1758970745533,508.70814137,0.000246,2]
[388030202,1758970754331,1602.64967996,0.000246,2]
[388030203,1758970754353,3397.35032004,0.000246,2]
[388030204,1758970762630,2483.68905456,0.000246,2]
[388030205,1758970775429,300.0,0.000246,2]
[388030206,1758970778195,3818.9706254,0.000246,2]
[388030207,1758970778226,1181.0293746,0.000246,2]
[388030208,1758970786445,300.0,0.000246,2]
[388030209,1758970793975,10000.0,0.00025,30]
[388030210,1758970797258,300.0,0.000246,2]
[388030211,1758970801943,266.14157095,0.000246,2]
[388030212,1758970810123,5000.0,0.000246,2]
[388030213,1758970826103,4439.92342705,0.000246,2]
[388030214,1758970834122,293.945002,0.000246,2]
[388030215,1758970834144,4706.054998,0.000246,2]
[388030216,1758970850192,5000.0,0.000246,2]
[388030217,1758970880793,293.955002,0.000246,2]
[388030218,1758970880816,4706.044998,0.000246,2]
[388030220,1758970935395,162.90456001,0.00032942,60]
[388030222,1758971093567,186.0,9e-07,2]
[388030223,1758971240140,-205.04,0.00025,2]
[388030224,1758971240160,-500.0,0.00025,2]
[388030225,1758971240178,-871.26358311,0.00026096,2]
[388030226,1758971240198,-303.55137951,0.00027068,23]
[388030227,1758971240217,-153.11843365,0.00027444,5]
[388030228,1758971240237,-200.0,0.000281,15]
[388030229,1758971240256,-300.0,0.00028417,2]
[388030230,1758971240276,-174.41803951,0.00028418,2]
[388030231,1758971240298,-500.0,0.00028418,2]
[388030232,1758971240317,-182.21136908,0.00028418,2]
[388030233,1758971240338,-311.16550426,0.00028418,2]
[388030244,1758971432072,-345.36287699,0.00028419,2]
[388030245,1758971432081,-1200.0,0.00028419,2]
[388030246,1758971432091,-3294.2370752,0.0002842,2]
[388030247,1758971432100,-1000.0,0.00028473,30]
[388030248,1758971432108,-250.0,0.00028605,2]
[388030249,1758971432117,-219.28967742,0.000297,2]
[388030250,1758971432126,-166.5,0.00030197,15]
[388030251,1758971432135,-400.0,0.00030202,2]
[388030252,1758971432144,-160.78,0.00030203,15]
[388030253,1758971432152,-15361.10579917,0.00030208,2]
[388030254,1758971432161,-166.5,0.00030208,15]
[388030255,1758971432170,-166.5,0.00030208,15]
[388030256,1758971432179,-160.78,0.00030303,15]
[388030257,1758971432188,-1680.0,0.00030812,2]
[388030258,1758971432197,-296.09016566,0.00031,2]
[388030259,1758971432206,-480.0,0.00031,15]
[388030260,1758971432215,-182.017,0.00031001,28]
[388030261,1758971432224,-3235.73999367,0.000318,2]
[388030262,1758971432238,-7938.59145941,0.000318,2]
[388030465,1758971437973,-434.60648948,0.000318,2]
[388030466,1758971438076,-6362.26701333,0.000318,2]
[388030467,1758971438087,-624.66576614,0.000318,2]
[388030468,1758971438097,-336.14506797,0.00031873,5]
[388030469,1758971438107,-471.09282918,0.00031873,5]
[388030470,1758971438117,-500.0,0.00031873,5]
[388030471,1758971438127,-399.0,0.0003188,3]
[388030472,1758971438137,-209461.531929,0.0003189,2]
[388030473,1758971438147,-370000.0,0.000319,2]
[388030474,1758971438156,-1233.45,0.000319,2]
[388030475,1758971438167,-199.74539683,0.00032,120]